[Event "Late-Titled-Tuesday-Blitz-April-23-2024"]
[Site "Chess.com"]
[Date "2024.04.23"]
[Round "6"]
[White "sergoy"]
[Black "Firouzja2003"]
[Result "0-1"]
[WhiteElo "2938"]
[BlackElo "3112"]
[TimeControl "180+1"]
[EndTime "15:09:07 PDT"]
[Termination "Firouzja2003 won by resignation"]

1. e4 {[%clk 0:03:00.9]} 1... c5 {[%clk 0:02:59.7]} 2. Nf3 {[%clk 0:03:01.3]}
2... d6 {[%clk 0:03:00.2]} 3. d4 {[%clk 0:03:01.8]} 3... cxd4 {[%clk 0:03:01.1]}
4. Nxd4 {[%clk 0:03:02.7]} 4... Nf6 {[%clk 0:03:01.3]} 5. Nc3 {[%clk 0:03:03.5]}
5... a6 {[%clk 0:03:02.1]} 6. Be3 {[%clk 0:03:03.8]} 6... e5 {[%clk 0:03:02.6]}
7. Nb3 {[%clk 0:03:04.1]} 7... Be6 {[%clk 0:03:03.4]} 8. f3 {[%clk 0:03:02.5]}
8... h5 {[%clk 0:03:03.1]} 9. Qd2 {[%clk 0:02:59.9]} 9... Nbd7 {[%clk
0:03:03.4]} 10. O-O-O {[%clk 0:02:59.8]} 10... Rc8 {[%clk 0:03:03.2]} 11. Kb1
{[%clk 0:02:59.3]} 11... Be7 {[%clk 0:03:03.4]} 12. Be2 {[%clk 0:02:50.1]} 12...
b5 {[%clk 0:03:03.6]} 13. h3 {[%clk 0:02:40.8]} 13... h4 {[%clk 0:03:01.5]} 14.
Rhe1 {[%clk 0:02:31.1]} 14... Nb6 {[%clk 0:02:54.4]} 15. f4 {[%clk 0:02:10.3]}
15... b4 {[%clk 0:02:46.8]} 16. Bxb6 {[%clk 0:02:10]} 16... Qxb6 {[%clk
0:02:44.9]} 17. Nd5 {[%clk 0:02:10]} 17... Bxd5 {[%clk 0:02:37.9]} 18. exd5
{[%clk 0:02:10.2]} 18... O-O {[%clk 0:02:12.3]} 19. Bf3 {[%clk 0:01:58.2]} 19...
Nd7 {[%clk 0:01:55.9]} 20. Nd4 {[%clk 0:01:43.3]} 20... Bf6 {[%clk 0:01:42.7]}
21. Nc6 {[%clk 0:01:39.4]} 21... exf4 {[%clk 0:01:31.6]} 22. Bg4 {[%clk
0:01:36.5]} 22... Rc7 {[%clk 0:01:22.2]} 23. Bxd7 {[%clk 0:01:33.9]} 23... Rxd7
{[%clk 0:01:23.1]} 24. Qxf4 {[%clk 0:01:34.1]} 24... Qc5 {[%clk 0:01:14.5]} 25.
Rf1 {[%clk 0:01:21.1]} 25... Rc7 {[%clk 0:01:11.3]} 26. Qg4 {[%clk 0:01:12.8]}
26... Bd8 {[%clk 0:01:09.6]} 27. g3 {[%clk 0:01:05.5]} 27... hxg3 {[%clk
0:01:04.5]} 28. Qxg3 {[%clk 0:01:06.4]} 28... Re8 {[%clk 0:01:04.2]} 29. Qd3
{[%clk 0:00:35.2]} 29... Bg5 {[%clk 0:00:56.5]} 30. Rg1 {[%clk 0:00:26.6]} 30...
Qe3 {[%clk 0:00:53.8]} 31. Qxa6 {[%clk 0:00:21.5]} 31... Bf6 {[%clk 0:00:53.6]}
32. Qd3 {[%clk 0:00:20.3]} 32... Rb7 {[%clk 0:00:42.4]} 33. Qf5 {[%clk
0:00:16.5]} 33... Kf8 {[%clk 0:00:28.4]} 34. Qh7 {[%clk 0:00:12.1]} 34... g6
{[%clk 0:00:28.9]} 35. Rgf1 {[%clk 0:00:11.9]} 35... Qg5 {[%clk 0:00:23.3]} 36.
Rg1 {[%clk 0:00:07.1]} 36... Qh4 {[%clk 0:00:17.3]} 37. Qxh4 {[%clk 0:00:06.8]}
37... Bxh4 {[%clk 0:00:18.2]} 38. Rg4 {[%clk 0:00:07.3]} 38... Be1 {[%clk
0:00:16.9]} 39. Rg1 {[%clk 0:00:06.8]} 39... Bf2 {[%clk 0:00:16]} 40. Rgf1
{[%clk 0:00:07.2]} 40... Bc5 {[%clk 0:00:15.2]} 41. Rf3 {[%clk 0:00:06.9]} 41...
Kg7 {[%clk 0:00:15.4]} 42. h4 {[%clk 0:00:04.7]} 42... Rh8 {[%clk 0:00:14]} 43.
Rh1 {[%clk 0:00:04.6]} 43... f5 {[%clk 0:00:13.7]} 44. Rff1 {[%clk 0:00:02.5]}
44... Kf6 {[%clk 0:00:14.1]} 45. Re1 {[%clk 0:00:03.1]} 45... f4 {[%clk
0:00:09.3]} 46. Re6+ {[%clk 0:00:03.2]} 46... Kf5 {[%clk 0:00:10.1]} 47. Ne7+
{[%clk 0:00:03.6]} 47... Rxe7 {[%clk 0:00:10.8]} 48. Rxe7 {[%clk 0:00:03.6]}
48... g5 {[%clk 0:00:11.7]} 49. Rf7+ {[%clk 0:00:02]} 49... Kg6 {[%clk 0:00:12]}
50. Re7 {[%clk 0:00:02.4]} 50... g4 {[%clk 0:00:12.6]} 51. h5+ {[%clk
0:00:01.4]} 51... Rxh5 {[%clk 0:00:12.3]} 52. Re6+ {[%clk 0:00:02]} 52... Kg5
{[%clk 0:00:12.4]} 53. Rf1 {[%clk 0:00:01.4]} 53... g3 {[%clk 0:00:13]} 54. Re8
{[%clk 0:00:02.1]} 54... Kg4 {[%clk 0:00:11.9]} 0-1

[Event "Late-Titled-Tuesday-Blitz-April-23-2024"]
[Site "Chess.com"]
[Date "2024.04.23"]
[Round "6"]
[White "quvnoq_muxlis"]
[Black "topotun"]
[Result "0-1"]
[WhiteElo "2678"]
[BlackElo "2855"]
[TimeControl "180+1"]
[EndTime "15:09:15 PDT"]
[Termination "topotun won by resignation"]

1. e4 {[%clk 0:03:00.9]} 1... c6 {[%clk 0:02:59.8]} 2. d4 {[%clk 0:03:01.1]}
2... d5 {[%clk 0:03:00.7]} 3. Nc3 {[%clk 0:03:01.7]} 3... dxe4 {[%clk
0:03:00.7]} 4. Nxe4 {[%clk 0:03:02.6]} 4... Nf6 {[%clk 0:03:01.4]} 5. Nxf6+
{[%clk 0:03:03]} 5... exf6 {[%clk 0:03:02.3]} 6. c3 {[%clk 0:03:03.7]} 6... Bd6
{[%clk 0:03:02.6]} 7. Bd3 {[%clk 0:03:04.4]} 7... O-O {[%clk 0:03:02.9]} 8. Qc2
{[%clk 0:03:05.3]} 8... Re8+ {[%clk 0:03:02.8]} 9. Ne2 {[%clk 0:03:05.9]} 9...
h5 {[%clk 0:03:02.9]} 10. h3 {[%clk 0:03:06.6]} 10... h4 {[%clk 0:02:56.9]} 11.
Bd2 {[%clk 0:03:06.5]} 11... Nd7 {[%clk 0:02:54.1]} 12. O-O-O {[%clk 0:03:06.5]}
12... Nf8 {[%clk 0:02:54.6]} 13. Rhg1 {[%clk 0:03:07]} 13... Be6 {[%clk
0:02:54.5]} 14. Kb1 {[%clk 0:03:07.5]} 14... b5 {[%clk 0:02:46.2]} 15. g3 {[%clk
0:03:07.3]} 15... Bc4 {[%clk 0:02:13.7]} 16. Bc1 {[%clk 0:02:32.4]} 16... Qe7
{[%clk 0:01:55.3]} 17. Be3 {[%clk 0:02:23.6]} 17... Bxd3 {[%clk 0:01:36.4]} 18.
Qxd3 {[%clk 0:02:24.5]} 18... Qe4 {[%clk 0:01:33.2]} 19. Kc2 {[%clk 0:02:06.2]}
19... Ng6 {[%clk 0:01:17.6]} 20. gxh4 {[%clk 0:01:32]} 20... Nxh4 {[%clk
0:01:08.2]} 21. Rg4 {[%clk 0:01:17.9]} 21... Qxd3+ {[%clk 0:01:05.8]} 22. Kxd3
{[%clk 0:01:18.8]} 22... Nf5 {[%clk 0:01:05.2]} 23. Rdg1 {[%clk 0:01:05.4]}
23... Rad8 {[%clk 0:01:01.1]} 24. Bf4 {[%clk 0:00:37.8]} 24... c5 {[%clk
0:00:47.4]} 25. Bxd6 {[%clk 0:00:36.4]} 25... Rxd6 {[%clk 0:00:48.3]} 26. Rf4
{[%clk 0:00:33.8]} 26... Ne7 {[%clk 0:00:38.6]} 27. Ng3 {[%clk 0:00:26.2]} 27...
Ng6 {[%clk 0:00:33.4]} 28. Re4 {[%clk 0:00:23.7]} 28... Re5 {[%clk 0:00:20.8]}
29. Ke3 {[%clk 0:00:18]} 29... cxd4+ {[%clk 0:00:20.7]} 30. cxd4 {[%clk
0:00:18.9]} 30... Rxe4+ {[%clk 0:00:17.6]} 31. Nxe4 {[%clk 0:00:19.8]} 31... Ra6
{[%clk 0:00:17.7]} 32. a3 {[%clk 0:00:17.2]} 32... Ne7 {[%clk 0:00:18.2]} 33.
Nc3 {[%clk 0:00:12.1]} 33... Rb6 {[%clk 0:00:16.7]} 34. d5 {[%clk 0:00:08]}
34... b4 {[%clk 0:00:15.9]} 35. axb4 {[%clk 0:00:08.9]} 35... Rxb4 {[%clk
0:00:16.4]} 36. Rd1 {[%clk 0:00:09.3]} 36... Nf5+ {[%clk 0:00:15.7]} 37. Kf3
{[%clk 0:00:06.7]} 37... Nd6 {[%clk 0:00:16.6]} 38. Rd2 {[%clk 0:00:06]} 38...
Kf8 {[%clk 0:00:16.9]} 39. Ke2 {[%clk 0:00:05.3]} 39... Nc4 {[%clk 0:00:15.6]}
40. Rd4 {[%clk 0:00:05.4]} 40... Rxb2+ {[%clk 0:00:15.5]} 41. Kd1 {[%clk
0:00:04.8]} 41... Nd6 {[%clk 0:00:15.5]} 42. Ra4 {[%clk 0:00:04.1]} 42... Rb7
{[%clk 0:00:15.5]} 43. Ra6 {[%clk 0:00:04]} 43... Rd7 {[%clk 0:00:15.6]} 44. Kc2
{[%clk 0:00:03.5]} 44... f5 {[%clk 0:00:15.7]} 45. Kd3 {[%clk 0:00:03.9]} 45...
g5 {[%clk 0:00:11.7]} 46. Kd4 {[%clk 0:00:03.9]} 46... f6 {[%clk 0:00:11.6]} 47.
Na4 {[%clk 0:00:03.5]} 47... Nb5+ {[%clk 0:00:10.2]} 48. Kc4 {[%clk 0:00:03.4]}
48... Rxd5 {[%clk 0:00:08.8]} 49. Rxf6+ {[%clk 0:00:02.9]} 49... Kg7 {[%clk
0:00:08]} 50. Ra6 {[%clk 0:00:02.6]} 50... Re5 {[%clk 0:00:07]} 51. Ra5 {[%clk
0:00:02.1]} 51... Nd6+ {[%clk 0:00:06.8]} 52. Kb4 {[%clk 0:00:02.8]} 52... Rxa5
{[%clk 0:00:06.9]} 53. Kxa5 {[%clk 0:00:03.7]} 53... Ne4 {[%clk 0:00:07.6]} 54.
f3 {[%clk 0:00:03.4]} 54... Nd2 {[%clk 0:00:06.4]} 55. Nc3 {[%clk 0:00:03.2]}
55... Nxf3 {[%clk 0:00:06.6]} 56. Ka6 {[%clk 0:00:03.9]} 56... Ng1 {[%clk
0:00:07]} 57. Nd5 {[%clk 0:00:03.5]} 57... Nxh3 {[%clk 0:00:07.2]} 58. Kxa7
{[%clk 0:00:04.4]} 58... g4 {[%clk 0:00:07.2]} 59. Kb6 {[%clk 0:00:05.1]} 59...
g3 {[%clk 0:00:07.8]} 60. Ne3 {[%clk 0:00:05.7]} 60... f4 {[%clk 0:00:07]} 61.
Ng2 {[%clk 0:00:05.6]} 61... Kf6 {[%clk 0:00:07]} 0-1

[Event "Late-Titled-Tuesday-Blitz-April-23-2024"]
[Site "Chess.com"]
[Date "2024.04.23"]
[Round "6"]
[White "sassassasss"]
[Black "Abund"]
[Result "0-1"]
[WhiteElo "2443"]
[BlackElo "2751"]
[TimeControl "180+1"]
[EndTime "15:09:18 PDT"]
[Termination "Abund won on time"]

1. e4 {[%clk 0:02:58.8]} 1... g6 {[%clk 0:03:00.1]} 2. d4 {[%clk 0:02:58.4]}
2... Bg7 {[%clk 0:03:00.6]} 3. Nc3 {[%clk 0:02:58.9]} 3... a6 {[%clk 0:03:00.5]}
4. Be3 {[%clk 0:02:58.5]} 4... b5 {[%clk 0:03:00.4]} 5. a3 {[%clk 0:02:58.4]}
5... Bb7 {[%clk 0:03:00.6]} 6. f3 {[%clk 0:02:58.8]} 6... d6 {[%clk 0:03:00.3]}
7. Qd2 {[%clk 0:02:58.7]} 7... Nd7 {[%clk 0:03:00.4]} 8. h4 {[%clk 0:02:55.9]}
8... h5 {[%clk 0:02:59.6]} 9. Nh3 {[%clk 0:02:55.2]} 9... e6 {[%clk 0:02:56]}
10. Ng5 {[%clk 0:02:55.1]} 10... c5 {[%clk 0:02:55.3]} 11. d5 {[%clk 0:02:41]}
11... e5 {[%clk 0:02:52.1]} 12. a4 {[%clk 0:02:33.1]} 12... b4 {[%clk
0:02:43.4]} 13. Nd1 {[%clk 0:02:28.6]} 13... a5 {[%clk 0:02:43.4]} 14. Nf2
{[%clk 0:02:27.2]} 14... Qc8 {[%clk 0:02:37.3]} 15. b3 {[%clk 0:02:26.6]} 15...
Ba6 {[%clk 0:02:37.3]} 16. Bxa6 {[%clk 0:02:20.7]} 16... Qxa6 {[%clk 0:02:37.5]}
17. g3 {[%clk 0:02:05.8]} 17... Rc8 {[%clk 0:02:29.1]} 18. Rd1 {[%clk
0:01:25.5]} 18... c4 {[%clk 0:02:27.8]} 19. Qe2 {[%clk 0:01:25.6]} 19... Nb8
{[%clk 0:02:14.7]} 20. O-O {[%clk 0:01:04.9]} 20... cxb3 {[%clk 0:02:06]} 21.
Qxa6 {[%clk 0:01:03.6]} 21... Nxa6 {[%clk 0:02:05.3]} 22. cxb3 {[%clk
0:01:04.2]} 22... Rc3 {[%clk 0:01:56.1]} 23. Rd3 {[%clk 0:01:04.2]} 23... Rc8
{[%clk 0:01:45.5]} 24. Rc1 {[%clk 0:01:04.5]} 24... Rxc1+ {[%clk 0:01:38.2]} 25.
Bxc1 {[%clk 0:01:04]} 25... Nc5 {[%clk 0:01:38.8]} 26. Re3 {[%clk 0:01:00.7]}
26... Bh6 {[%clk 0:01:39.3]} 27. f4 {[%clk 0:00:49.2]} 27... Nf6 {[%clk
0:01:33.8]} 28. fxe5 {[%clk 0:00:31.8]} 28... dxe5 {[%clk 0:01:34.7]} 29. Rf3
{[%clk 0:00:32.1]} 29... Ke7 {[%clk 0:01:28.6]} 30. d6+ {[%clk 0:00:15.8]} 30...
Ke8 {[%clk 0:01:13.3]} 31. Rxf6 {[%clk 0:00:16]} 31... Rf8 {[%clk 0:01:07.8]}
32. Rf3 {[%clk 0:00:14.6]} 32... f6 {[%clk 0:01:03.3]} 33. Nh7 {[%clk
0:00:14.6]} 33... Bxc1 {[%clk 0:01:03]} 34. Nxf8 {[%clk 0:00:14.7]} 34... Kxf8
{[%clk 0:01:03.5]} 35. Rxf6+ {[%clk 0:00:15.2]} 35... Ke8 {[%clk 0:00:59.5]} 36.
Rxg6 {[%clk 0:00:15.3]} 36... Nxb3 {[%clk 0:00:58.6]} 37. Nd3 {[%clk 0:00:15.6]}
37... Be3+ {[%clk 0:00:54.6]} 38. Kg2 {[%clk 0:00:15.6]} 38... Bd4 {[%clk
0:00:55.4]} 39. Rg5 {[%clk 0:00:15.1]} 39... Kd7 {[%clk 0:00:42.1]} 40. Nxe5+
{[%clk 0:00:15.1]} 40... Kxd6 {[%clk 0:00:42.4]} 41. Nd3 {[%clk 0:00:13.4]}
41... Kc6 {[%clk 0:00:34.8]} 42. Rxh5 {[%clk 0:00:13.3]} 42... Nc5 {[%clk
0:00:33.5]} 43. Nxc5 {[%clk 0:00:12.8]} 43... Bxc5 {[%clk 0:00:33.9]} 44. Rd5
{[%clk 0:00:08.7]} 44... b3 {[%clk 0:00:27.2]} 45. Rd1 {[%clk 0:00:04.2]} 45...
b2 {[%clk 0:00:22.6]} 46. Rb1 {[%clk 0:00:03.9]} 46... Bd4 {[%clk 0:00:23.1]}
47. Kf3 {[%clk 0:00:04.8]} 47... Kc5 {[%clk 0:00:22.1]} 48. g4 {[%clk
0:00:05.7]} 48... Kb4 {[%clk 0:00:21.6]} 49. Kf4 {[%clk 0:00:05.9]} 49... Kxa4
{[%clk 0:00:20.7]} 50. e5 {[%clk 0:00:06.4]} 50... Kb3 {[%clk 0:00:19.9]} 51. g5
{[%clk 0:00:06.5]} 51... Bc3 {[%clk 0:00:10.1]} 52. g6 {[%clk 0:00:05.6]} 52...
Bd2+ {[%clk 0:00:10.6]} 53. Kf5 {[%clk 0:00:05.8]} 53... Bh6 {[%clk 0:00:11.5]}
54. Kf6 {[%clk 0:00:05.7]} 54... a4 {[%clk 0:00:11.5]} 55. e6 {[%clk 0:00:04.3]}
55... a3 {[%clk 0:00:11.3]} 56. e7 {[%clk 0:00:04]} 56... a2 {[%clk 0:00:11.7]}
0-1

[Event "Late-Titled-Tuesday-Blitz-April-23-2024"]
[Site "Chess.com"]
[Date "2024.04.23"]
[Round "6"]
[White "Hamisandwich"]
[Black "GMKrikor"]
[Result "1-0"]
[WhiteElo "2742"]
[BlackElo "2880"]
[TimeControl "180+1"]
[EndTime "15:09:24 PDT"]
[Termination "Hamisandwich won on time"]

1. e4 {[%clk 0:02:58.6]} 1... c5 {[%clk 0:02:58.2]} 2. Nc3 {[%clk 0:02:57.6]}
2... Nc6 {[%clk 0:02:57]} 3. Bb5 {[%clk 0:02:56.9]} 3... Nf6 {[%clk 0:02:54.7]}
4. Bxc6 {[%clk 0:02:51.5]} 4... dxc6 {[%clk 0:02:54.6]} 5. d3 {[%clk 0:02:48.6]}
5... e5 {[%clk 0:02:53.6]} 6. h3 {[%clk 0:02:45.9]} 6... Bd6 {[%clk 0:02:52.9]}
7. Be3 {[%clk 0:02:42.2]} 7... Nd7 {[%clk 0:02:48.3]} 8. Nge2 {[%clk 0:02:38.9]}
8... Nf8 {[%clk 0:02:46.5]} 9. O-O {[%clk 0:02:38.5]} 9... Ne6 {[%clk 0:02:46]}
10. f4 {[%clk 0:02:37.7]} 10... exf4 {[%clk 0:02:44.9]} 11. Nxf4 {[%clk
0:02:38.6]} 11... Bxf4 {[%clk 0:02:39.7]} 12. Bxf4 {[%clk 0:02:39.5]} 12... O-O
{[%clk 0:02:37.8]} 13. Be3 {[%clk 0:02:28.3]} 13... b6 {[%clk 0:02:37.7]} 14.
Qd2 {[%clk 0:02:21.5]} 14... Qd6 {[%clk 0:02:34.3]} 15. Qf2 {[%clk 0:02:19.2]}
15... Bd7 {[%clk 0:02:27]} 16. Rad1 {[%clk 0:02:12.1]} 16... Rae8 {[%clk
0:02:22.7]} 17. a4 {[%clk 0:02:10.2]} 17... a5 {[%clk 0:02:21.8]} 18. b3 {[%clk
0:02:10.1]} 18... Qe5 {[%clk 0:02:11.3]} 19. Ne2 {[%clk 0:02:06.4]} 19... f5
{[%clk 0:01:01.1]} 20. Qh4 {[%clk 0:02:04.9]} 20... fxe4 {[%clk 0:00:55.1]} 21.
dxe4 {[%clk 0:01:44.7]} 21... Rxf1+ {[%clk 0:00:52.1]} 22. Rxf1 {[%clk
0:01:45.6]} 22... Nf8 {[%clk 0:00:45.8]} 23. Ng3 {[%clk 0:01:42.3]} 23... Ng6
{[%clk 0:00:43.7]} 24. Qg5 {[%clk 0:01:42.8]} 24... Qxg5 {[%clk 0:00:42.8]} 25.
Bxg5 {[%clk 0:01:43.7]} 25... Be6 {[%clk 0:00:42.5]} 26. Rd1 {[%clk 0:01:30.4]}
26... h6 {[%clk 0:00:41.7]} 27. Be3 {[%clk 0:01:27.9]} 27... Kf7 {[%clk
0:00:39.1]} 28. Rd6 {[%clk 0:01:22.9]} 28... Ne7 {[%clk 0:00:35.1]} 29. Ne2
{[%clk 0:01:01.5]} 29... Bc8 {[%clk 0:00:22.4]} 30. Nf4 {[%clk 0:00:55.6]} 30...
g5 {[%clk 0:00:20.6]} 31. Nd3 {[%clk 0:00:54.2]} 31... Ng6 {[%clk 0:00:21.2]}
32. Rxc6 {[%clk 0:00:50.4]} 32... Rxe4 {[%clk 0:00:20.7]} 33. Bxc5 {[%clk
0:00:40.6]} 33... bxc5 {[%clk 0:00:16]} 34. Rxc8 {[%clk 0:00:40.8]} 34... c4
{[%clk 0:00:14.3]} 35. Rxc4 {[%clk 0:00:33.8]} 35... Rxc4 {[%clk 0:00:14.4]} 36.
bxc4 {[%clk 0:00:34.7]} 36... Ke6 {[%clk 0:00:15]} 37. Kf2 {[%clk 0:00:34.2]}
37... Nh4 {[%clk 0:00:13.2]} 38. Nc5+ {[%clk 0:00:32.7]} 38... Ke5 {[%clk
0:00:12.8]} 39. Nb3 {[%clk 0:00:33.6]} 39... Nf5 {[%clk 0:00:11.4]} 40. c5
{[%clk 0:00:29.8]} 40... Kd5 {[%clk 0:00:11.7]} 41. Kf3 {[%clk 0:00:27.8]} 41...
Nh4+ {[%clk 0:00:11.1]} 42. Kg3 {[%clk 0:00:27.8]} 42... Nf5+ {[%clk 0:00:11.6]}
43. Kf3 {[%clk 0:00:25.1]} 43... Nh4+ {[%clk 0:00:11.7]} 44. Kf2 {[%clk
0:00:25.7]} 44... Nf5 {[%clk 0:00:12.4]} 45. Nxa5 {[%clk 0:00:21.7]} 45... Kxc5
{[%clk 0:00:12.4]} 46. Nb3+ {[%clk 0:00:22.5]} 46... Kb4 {[%clk 0:00:12.7]} 47.
a5 {[%clk 0:00:22.9]} 47... Kb5 {[%clk 0:00:10.5]} 48. g3 {[%clk 0:00:19]} 48...
Nd6 {[%clk 0:00:09.5]} 49. Kf3 {[%clk 0:00:18.2]} 49... h5 {[%clk 0:00:10.2]}
50. g4 {[%clk 0:00:12.9]} 50... hxg4+ {[%clk 0:00:10.3]} 51. Kxg4 {[%clk
0:00:12.4]} 51... Ne4 {[%clk 0:00:10.9]} 52. c4+ {[%clk 0:00:10]} 52... Ka6
{[%clk 0:00:08.4]} 53. c5 {[%clk 0:00:08.2]} 53... Kb5 {[%clk 0:00:07.7]} 54.
Kf3 {[%clk 0:00:08.7]} 54... Nf6 {[%clk 0:00:04.2]} 55. Ke3 {[%clk 0:00:08.2]}
55... g4 {[%clk 0:00:04.5]} 56. h4 {[%clk 0:00:08.3]} 56... Nh5 {[%clk
0:00:03.2]} 57. Kf2 {[%clk 0:00:06.9]} 57... Ka6 {[%clk 0:00:01.5]} 58. c6
{[%clk 0:00:07.1]} 58... Nf6 {[%clk 0:00:01.8]} 59. Kg3 {[%clk 0:00:05.3]} 59...
Ka7 {[%clk 0:00:02.2]} 60. Nd4 {[%clk 0:00:04.1]} 60... Ka6 {[%clk 0:00:02.4]}
61. Nb3 {[%clk 0:00:04.8]} 61... Ka7 {[%clk 0:00:02.6]} 62. Nc5 {[%clk
0:00:05.5]} 62... Ka8 {[%clk 0:00:01.9]} 63. c7 {[%clk 0:00:05.6]} 1-0

[Event "Late-Titled-Tuesday-Blitz-April-23-2024"]
[Site "Chess.com"]
[Date "2024.04.23"]
[Round "6"]
[White "Veleamater"]
[Black "Oleg_Papayan"]
[Result "0-1"]
[WhiteElo "2436"]
[BlackElo "2643"]
[TimeControl "180+1"]
[EndTime "15:09:29 PDT"]
[Termination "Oleg_Papayan won by resignation"]

1. g3 {[%clk 0:03:00.9]} 1... d5 {[%clk 0:03:00]} 2. Bg2 {[%clk 0:03:00.7]} 2...
e5 {[%clk 0:03:00.2]} 3. d3 {[%clk 0:03:01.1]} 3... Nc6 {[%clk 0:02:58.8]} 4.
Nf3 {[%clk 0:03:01.5]} 4... h5 {[%clk 0:02:58.2]} 5. h4 {[%clk 0:02:58.3]} 5...
f6 {[%clk 0:02:44.2]} 6. Nc3 {[%clk 0:02:57.2]} 6... Be6 {[%clk 0:02:44.2]} 7.
O-O {[%clk 0:02:55.7]} 7... Qd7 {[%clk 0:02:44.1]} 8. a3 {[%clk 0:02:55.4]} 8...
Be7 {[%clk 0:02:39]} 9. b4 {[%clk 0:02:55.4]} 9... Nh6 {[%clk 0:02:38.3]} 10. e4
{[%clk 0:02:47.8]} 10... d4 {[%clk 0:02:32.6]} 11. Nd5 {[%clk 0:02:43.2]} 11...
Nf7 {[%clk 0:02:06.3]} 12. Nxe7 {[%clk 0:02:42.1]} 12... Nxe7 {[%clk 0:02:03.2]}
13. Bb2 {[%clk 0:02:40.9]} 13... O-O-O {[%clk 0:01:58.1]} 14. Qd2 {[%clk
0:02:35.5]} 14... Bh3 {[%clk 0:01:35.8]} 15. Rfd1 {[%clk 0:02:32]} 15... Bxg2
{[%clk 0:01:35.8]} 16. Kxg2 {[%clk 0:02:31.6]} 16... Qg4 {[%clk 0:01:32.4]} 17.
Rh1 {[%clk 0:02:29.6]} 17... Ng6 {[%clk 0:01:30.5]} 18. Ng1 {[%clk 0:02:11.8]}
18... Nf4+ {[%clk 0:01:23.3]} 19. Kf1 {[%clk 0:02:11.6]} 19... Ne6 {[%clk
0:01:23.5]} 20. Qe2 {[%clk 0:02:06.3]} 20... Qxe2+ {[%clk 0:00:39.4]} 21. Kxe2
{[%clk 0:02:04.4]} 21... g5 {[%clk 0:00:40.3]} 22. Nf3 {[%clk 0:02:03.9]} 22...
g4 {[%clk 0:00:38.5]} 23. Nd2 {[%clk 0:02:03.6]} 23... Kd7 {[%clk 0:00:36.9]}
24. Raf1 {[%clk 0:02:02.4]} 24... Ke7 {[%clk 0:00:36.4]} 25. Nc4 {[%clk
0:01:57.2]} 25... Rhg8 {[%clk 0:00:32.8]} 26. a4 {[%clk 0:01:56.2]} 26... Rg6
{[%clk 0:00:31.4]} 27. b5 {[%clk 0:01:56]} 27... Nd6 {[%clk 0:00:31.1]} 28. Ba3
{[%clk 0:01:55.7]} 28... Kf7 {[%clk 0:00:30.5]} 29. Na5 {[%clk 0:01:41.4]} 29...
b6 {[%clk 0:00:27.7]} 30. Nc6 {[%clk 0:01:40.9]} 30... Ra8 {[%clk 0:00:28.4]}
31. Bxd6 {[%clk 0:01:38.9]} 31... cxd6 {[%clk 0:00:29.3]} 32. Ra1 {[%clk
0:01:37.2]} 32... Nd8 {[%clk 0:00:22.5]} 33. Nxd8+ {[%clk 0:01:33]} 33... Rxd8
{[%clk 0:00:22.4]} 34. a5 {[%clk 0:01:33.6]} 34... Ke6 {[%clk 0:00:19.2]} 35.
Rhc1 {[%clk 0:01:25.4]} 35... Rg7 {[%clk 0:00:17.5]} 36. Ra4 {[%clk 0:01:23.9]}
36... Rc7 {[%clk 0:00:16.8]} 37. axb6 {[%clk 0:01:14.6]} 37... axb6 {[%clk
0:00:17.7]} 38. Kd2 {[%clk 0:01:12.2]} 38... Rc5 {[%clk 0:00:17.3]} 39. Rb4
{[%clk 0:01:10.3]} 39... Ra8 {[%clk 0:00:17.5]} 40. Rb2 {[%clk 0:01:08.8]} 40...
Ra5 {[%clk 0:00:17.6]} 41. c3 {[%clk 0:01:07.9]} 41... dxc3+ {[%clk 0:00:15.9]}
42. Rxc3 {[%clk 0:01:08]} 42... Rcxb5 {[%clk 0:00:16.1]} 43. Rcb3 {[%clk
0:01:07.1]} 43... Rxb3 {[%clk 0:00:15]} 44. Rxb3 {[%clk 0:01:07.5]} 44... b5
{[%clk 0:00:15.4]} 45. Ke3 {[%clk 0:01:07.9]} 45... d5 {[%clk 0:00:15.6]} 46.
exd5+ {[%clk 0:01:07.8]} 46... Kxd5 {[%clk 0:00:16.5]} 47. Rb4 {[%clk
0:01:05.1]} 47... f5 {[%clk 0:00:16.2]} 48. Rb2 {[%clk 0:01:01.4]} 48... Kc5
{[%clk 0:00:15.3]} 49. Rc2+ {[%clk 0:01:00.3]} 49... Kd5 {[%clk 0:00:15.7]} 50.
Rb2 {[%clk 0:01:00.1]} 50... Kc5 {[%clk 0:00:09.9]} 51. Rc2+ {[%clk 0:00:55.3]}
51... Kb6 {[%clk 0:00:10.5]} 52. Rc8 {[%clk 0:00:51.4]} 52... b4 {[%clk
0:00:09.5]} 53. Rb8+ {[%clk 0:00:48]} 53... Kc5 {[%clk 0:00:09]} 54. Re8 {[%clk
0:00:47.7]} 54... Kc6 {[%clk 0:00:03.9]} 55. Rc8+ {[%clk 0:00:44.8]} 55... Kb5
{[%clk 0:00:04]} 56. Rf8 {[%clk 0:00:42.3]} 56... Ka4 {[%clk 0:00:03.6]} 57. Kd2
{[%clk 0:00:39.3]} 57... Rc5 {[%clk 0:00:03.8]} 58. Rxf5 {[%clk 0:00:34.1]}
58... b3 {[%clk 0:00:03.6]} 59. Rf8 {[%clk 0:00:34.3]} 59... Ka3 {[%clk
0:00:02.4]} 60. Rb8 {[%clk 0:00:29.9]} 60... Kb2 {[%clk 0:00:02.6]} 61. Ke3
{[%clk 0:00:28.3]} 61... Kc2 {[%clk 0:00:02.2]} 62. d4 {[%clk 0:00:18.2]} 62...
exd4+ {[%clk 0:00:03.1]} 63. Kxd4 {[%clk 0:00:18.4]} 63... Rc7 {[%clk
0:00:03.9]} 64. Ke3 {[%clk 0:00:15.4]} 64... b2 {[%clk 0:00:04.3]} 65. f3 {[%clk
0:00:15.1]} 65... gxf3 {[%clk 0:00:04.1]} 66. Kxf3 {[%clk 0:00:14.7]} 66... b1=Q
{[%clk 0:00:04.6]} 67. Rxb1 {[%clk 0:00:13.8]} 67... Kxb1 {[%clk 0:00:05.5]} 68.
g4 {[%clk 0:00:13.6]} 68... Rc3+ {[%clk 0:00:06]} 69. Kf4 {[%clk 0:00:11.7]}
69... Rc4+ {[%clk 0:00:06.4]} 70. Kg5 {[%clk 0:00:12]} 70... hxg4 {[%clk
0:00:06.5]} 71. h5 {[%clk 0:00:12.5]} 71... g3 {[%clk 0:00:07.1]} 72. h6 {[%clk
0:00:13.4]} 72... g2 {[%clk 0:00:07.5]} 0-1